bitfinex/quotes_ETHUSD_20250920
["timestamp","ask_amount","ask_price","bid_price","bid_amount"]
[1758401286404,8.04509852,4493.9,4493.8,0.2316]
[1758401286571,8.04509852,4493.9,4493.8,0.001]
[1758401288360,8.04509852,4493.9,4493.8,0.2316]
[1758401289155,8.04509852,4493.9,4493.8,0.001]
[1758401289493,5.81985987,4493.9,4493.8,0.001]
[1758401289677,8.04509852,4493.9,4493.8,0.2316]
[1758401293195,5.611,4493.9,4493.8,0.001]
[1758401293484,5.611,4493.9,4493.8,0.2316]
[1758401301117,7.83623865,4493.9,4493.8,0.001]
[1758401302126,5.611,4493.9,4493.8,0.001]
[1758401302783,7.83623865,4493.9,4493.8,0.001]
[1758401314956,5.611,4493.9,4493.8,0.001]
[1758401315316,7.83623865,4493.9,4493.8,0.001]
[1758401318120,5.611,4493.9,4493.8,0.001]
[1758401318524,7.83623865,4493.9,4493.8,0.001]
[1758401325086,3.686,4493.9,4493.8,0.001]
[1758401329914,5.91123865,4493.9,4493.8,0.001]
[1758401330497,3.686,4493.9,4493.8,0.001]
[1758401332928,5.91123865,4493.9,4493.8,0.001]
[1758401333426,6.12009703,4493.9,4493.8,0.001]
[1758401333630,6.39150619,4493.9,4493.8,0.001]
[1758401334311,6.18264781,4493.9,4493.8,0.001]
[1758401334714,6.39146404,4493.9,4493.8,0.001]
[1758401335622,6.12925488,4493.9,4493.8,0.001]
[1758401337476,3.89481623,4493.9,4493.8,0.001]
[1758401337641,6.12005488,4493.9,4493.8,0.001]
[1758401340325,3.89481623,4493.9,4493.8,0.001]
[1758401340526,3.89481623,4493.9,4493.8,0.2403]
[1758401340949,3.685,4493.9,4493.8,0.2403]
[1758401341961,5.91023865,4493.9,4493.8,0.2403]
[1758401342122,3.685,4493.9,4493.8,0.2403]
[1758401342823,5.91023865,4493.9,4493.8,0.2403]
[1758401343118,3.685,4493.9,4493.8,0.2403]
[1758401343962,5.91023865,4493.9,4493.8,0.2403]
[1758401344550,5.91023865,4493.9,4493.8,0.001]
[1758401344860,6.11895737,4493.9,4493.8,0.001]
[1758401345328,5.91023865,4493.9,4493.8,0.001]
[1758401345656,6.11895423,4493.9,4493.8,0.001]
[1758401346026,6.12815423,4493.9,4493.8,0.001]
[1758401346632,6.11895423,4493.9,4493.8,0.001]
[1758401366138,6.11895423,4493.9,4493.8,0.2477]
[1758401385095,0.21071558,4493.9,4493.8,0.001]
[1758401385294,3.89371558,4493.9,4493.8,0.2493]
[1758401385593,6.11895423,4493.9,4493.8,0.2493]
[1758401386068,6.11903869,4493.9,4493.8,0.2493]
[1758401386896,6.11903869,4493.9,4493.8,0.001]
[1758401394013,6.12823869,4493.9,4493.8,0.001]
[1758401398717,6.11903869,4493.9,4493.8,0.001]
[1758401399131,9.11903869,4493.9,4493.8,0.001]
[1758401399330,9.12823869,4493.9,4493.8,0.001]
[1758401399509,9.92023869,4493.9,4493.8,0.001]
[1758401399704,10.18244785,4493.9,4493.8,0.001]
[1758401400245,2.22543674,4493.5,4493.4,0.001]
[1758401400410,11.05554474,4493.5,4493.4,0.001]
[1758401400738,14.06474474,4493.5,4493.4,0.001]
[1758401400937,14.15398494,4493.5,4493.4,0.001]
[1758401404411,14.14478494,4493.5,4493.4,0.001]
[1758401411907,15.2081941,4493.5,4493.4,0.001]
[1758401416174,15.1989941,4493.5,4493.4,0.001]
[1758401416474,15.2081941,4493.5,4493.4,0.001]
[1758401417438,15.20750861,4493.5,4493.4,0.001]
[1758401418408,15.19830861,4493.5,4493.4,0.001]
[1758401418583,15.20750861,4493.5,4493.4,0.001]
[1758401419304,6.01748626,4493.4,4493.3,0.001]
[1758401419504,6.01748626,4493.4,4492.8,0.001]
[1758401419505,10.95404189,4492.9,4492.8,0.001]
[1758401419805,16.77215644,4492.9,4492.8,0.001]
[1758401419969,17.0343656,4492.9,4492.8,0.001]
[1758401432598,17.0343656,4492.9,4492.8,0.2444]
[1758401435743,17.0343656,4492.9,4492.8,0.001]
[1758401439920,18.21212219,4492.9,4492.8,0.001]
[1758401441250,18.21251629,4492.9,4492.8,0.001]
[1758401442415,18.21251629,4492.9,4492.8,0.2444]
[1758401446858,12.09845174,4492.9,4492.8,0.2444]
[1758401447354,2.22588256,4492.6,4492.5,0.001]
[1758401447558,9.11939121,4492.6,4492.5,0.001]
[1758401448068,9.20864873,4492.6,4492.5,0.001]
[1758401449346,9.20864873,4492.6,4492.5,0.2489]
[1758401451846,5.52364873,4492.6,4492.5,0.2489]
[1758401452035,9.20864873,4492.6,4492.5,0.2489]
[1758401455493,5.52364873,4492.6,4492.5,0.2489]
[1758401455697,9.20864873,4492.6,4492.5,0.2489]
[1758401461401,6.98276617,4492.6,4492.5,0.2489]
[1758401462599,0.08925752,4492.6,4492.5,0.2489]
[1758401462800,3.685,4492.6,4492.5,2.4748321]
[1758401463021,0.002,4492.8,4492.5,0.71919055]
[1758401463210,3.686,4492.7,4492.6,0.25675882]
[1758401464018,3.686,4492.7,4492.6,2.48264138]
[1758401465117,3.686,4492.7,4492.6,0.25675882]
[1758401469188,3.686,4492.7,4492.6,4.20515882]
[1758401469399,3.686,4492.7,4492.6,4.8956014]
[1758401469600,3.686,4492.7,4492.6,4.87334258]
[1758401470805,3.688,4492.8,4492.6,4.87334258]
[1758401471024,3.688,4492.8,4492.7,0.02225833]
[1758401471199,3.688,4492.8,4492.7,0.25675833]
[1758401471399,3.688,4492.8,4492.7,0.96911008]
[1758401474256,0.002,4492.8,4492.7,3.19494309]
[1758401474418,3.688,4492.8,4492.7,3.19494309]
[1758401475001,3.688,4492.8,4492.7,0.96911008]
[1758401475205,0.002,4492.8,4492.7,2.48259134]
[1758401476657,0.002,4492.8,4492.7,0.25675833]
[1758401479708,0.002,4492.8,4492.7,0.02225833]
[1758401479910,0.002,4492.8,4492.5,0.27295932]
[1758401480111,0.002,4492.8,4492.6,0.2497]
[1758401480331,0.002,4492.8,4492.7,0.02225833]
[1758401480910,0.002,4492.8,4492.7,0.2497]
[1758401482622,0.002,4492.8,4492.5,0.02325932]
[1758401482825,0.002,4492.8,4492.5,0.001]
[1758401483546,0.002,4492.8,4492.5,0.2507]
[1758401484444,0.002,4492.8,4492.6,0.001]
[1758401485046,0.002,4492.8,4492.6,0.2507]
[1758401486425,0.002,4492.8,4492.6,0.001]
[1758401487544,0.002,4492.8,4492.6,0.2507]
[1758401487850,0.002,4492.8,4492.6,0.72126468]
[1758401488448,0.002,4492.8,4492.6,2.94711173]
[1758401488747,0.002,4492.8,4492.7,0.27195833]
[1758401489947,0.002,4492.8,4492.7,4.22035833]
[1758401490353,0.002,4492.8,4492.7,6.44619134]
[1758401490515,0.002,4492.8,4492.7,7.33849949]
[1758401496346,0.002,4492.8,4492.7,5.11266648]
[1758401497930,0.002,4492.8,4492.7,3.9484]
[1758401498135,0.002,4492.8,4492.7,3.97065833]
[1758401501201,0.002,4492.8,4492.7,6.19649134]
[1758401501367,0.002,4492.8,4492.7,6.17423301]
[1758401503089,0.002,4492.8,4492.7,2.22583301]
[1758401505157,0.002,4492.8,4492.6,0.02325882]
[1758401505487,0.002,4492.8,4492.6,0.001]
[1758401506470,0.002,4492.8,4492.6,2.22688192]
[1758401511203,0.002,4492.8,4492.7,0.02225833]
[1758401513907,0.002,4492.8,4492.7,3.97065833]
[1758401516588,0.002,4492.8,4492.7,3.9484]
[1758401517124,0.67122235,4492.8,4492.7,3.9484]
[1758401528445,3.12620582,4492.8,4492.7,3.9484]
[1758401531354,0.67122235,4492.8,4492.7,3.9484]
[1758401531556,0.67122235,4492.8,4492.6,0.001]
[1758401531733,3.687,4492.7,4492.6,0.001]
[1758401538076,6.59415459,4492.7,4492.6,0.001]
[1758401538285,11.10113629,4492.7,4492.6,0.001]
[1758401540858,11.10113629,4492.7,4492.5,0.001]
[1758401540859,6.01788256,4492.6,4492.5,0.001]
[1758401541068,6.48848381,4492.6,4492.5,0.001]
[1758401541273,6.73248381,4492.6,4492.5,0.001]
[1758401541471,7.08047078,4492.6,4492.5,0.001]
[1758401541663,7.16973248,4492.6,4492.5,0.001]
[1758401544158,7.16941525,4492.6,4492.5,0.001]
[1758401548369,6.0180312,4492.3,4492.2,0.001]
[1758401548568,12.10331522,4492.3,4492.2,0.001]
[1758401548766,12.7846368,4492.3,4492.2,0.001]
[1758401548970,13.0286368,4492.3,4492.2,0.001]
[1758401549212,13.11790368,4492.3,4492.2,0.001]
[1758401549611,12.87390368,4492.3,4492.2,0.001]
[1758401551787,13.11790368,4492.3,4492.2,0.001]
[1758401553407,12.85569452,4492.3,4492.2,0.001]
[1758401553622,13.11790368,4492.3,4492.2,0.001]
[1758401553823,12.85569452,4492.3,4492.2,0.001]
[1758401556831,12.61169452,4492.3,4492.2,0.001]
[1758401557041,12.85569452,4492.3,4492.2,0.001]
[1758401557631,12.61169452,4492.3,4492.2,0.001]
[1758401558248,12.85569452,4492.3,4492.2,0.001]
[1758401559822,5.22608076,4492.2,4492.1,1e-08]
[1758401559994,6.02614259,4492.2,4492.1,1e-08]
[1758401560512,6.37519501,4492.2,4492.1,1e-08]
[1758401561136,6.37519501,4492.2,4491.8,0.001]
[1758401561342,3.01822943,4491.9,4491.8,1e-08]
[1758401561542,10.59862587,4491.9,4491.8,1e-08]
[1758401563469,10.70946813,4491.9,4491.8,1e-08]
[1758401564262,10.94576813,4491.9,4491.8,1e-08]
[1758401564824,10.70946813,4491.9,4491.8,1e-08]
[1758401565734,10.94576813,4491.9,4491.8,1e-08]
[1758401566983,10.70946813,4491.9,4491.8,1e-08]
[1758401567270,6.01827899,4491.8,4491.7,0.001]
[1758401567478,6.57434082,4491.8,4491.7,0.001]
[1758401567970,6.80344082,4491.8,4491.7,0.001]
[1758401570662,7.15251016,4491.8,4491.7,0.001]
[1758401571855,7.38881016,4491.8,4491.7,0.001]
[1758401572233,7.15251016,4491.8,4491.7,0.001]
[1758401574269,7.38881016,4491.8,4491.7,0.001]
[1758401575836,7.15251016,4491.8,4491.7,0.001]
[1758401576059,6.80344082,4491.8,4491.7,0.001]
[1758401577170,6.01832856,4491.7,4491.6,0.001]
[1758401577341,10.599725,4491.7,4491.6,0.001]
[1758401577542,6.907725,4491.7,4491.6,0.2291]
[1758401577742,10.599725,4491.7,4491.6,0.2291]
[1758401578471,10.599725,4491.7,4491.6,0.001]
[1758401578675,10.599725,4491.7,4491.6,0.2291]
[1758401578834,9.12640342,4491.7,4491.6,0.2291]
[1758401586192,11.05240342,4491.7,4491.6,0.2291]
[1758401588697,11.05311334,4491.7,4491.6,0.2291]
[1758401589470,7.36111334,4491.7,4491.6,0.2291]
[1758401589677,11.05311334,4491.7,4491.6,0.2291]
[1758401594561,10.84432856,4491.7,4491.6,0.2291]
[1758401594767,11.05300562,4491.7,4491.6,0.2291]
[1758401595302,11.05299108,4491.7,4491.6,0.2291]
[1758401601206,11.05299108,4491.7,4491.6,0.001]
[1758401602624,10.84432856,4491.7,4491.6,0.001]
[1758401602796,11.05497391,4491.7,4491.6,0.001]
[1758401635194,11.05528792,4491.7,4491.6,0.001]
[1758401640681,8.82895936,4491.7,4491.6,0.001]
[1758401640884,2.13695936,4491.7,4491.6,0.2463]
[1758401641109,5.82595936,4491.7,4491.6,0.2463]
[1758401641710,1.928,4491.7,4491.6,0.2463]
[1758401641912,0.002,4491.7,4491.6,2.72015152]
[1758401642193,3.692,4491.7,4491.6,2.72015152]
[1758401647104,0.002,4491.7,4491.6,2.72015152]
[1758401656130,0.002,4491.7,4491.6,6.66855152]
[1758401666739,0.002,4491.7,4491.6,6.42325152]
[1758401668738,0.002,4491.7,4491.6,6.66995152]
[1758401670200,0.002,4491.7,4491.6,6.42325152]
[1758401674673,0.002,4491.7,4491.6,6.66995152]
[1758401674881,0.002,4491.7,4491.6,6.42325152]
[1758401690600,0.002,4491.7,4491.6,4.1968734]
[1758401690824,0.002,4491.7,4491.6,6.17577812]
[1758401695234,0.002,4491.7,4491.6,6.42327812]
[1758401701250,0.002,4491.7,4491.6,6.16087812]
[1758401702006,0.002,4491.7,4491.6,10.48907304]
[1758401702816,1e-08,4491.9,4491.8,6.01827899]
[1758401703105,1e-08,4491.9,4491.8,11.24567638]
[1758401703332,1e-08,4491.9,4491.8,11.47397638]
[1758401708061,0.002,4492.4,4491.8,11.47397638]
[1758401708062,0.002,4492.4,4492.3,6.0180312]
[1758401708267,0.002,4492.4,4492.3,9.7040312]
[1758401708412,0.002,4492.4,4492.3,11.12534437]
[1758401718490,0.002,4492.4,4492.3,15.07374437]
[1758401735032,0.002,4492.4,4492.3,15.07474437]
[1758401737336,0.002,4492.4,4492.3,14.84644437]
[1758401737540,0.002,4492.4,4492.3,15.08204437]
[1758401742115,0.002,4492.6,4492.5,9.9643321]
[1758401742328,0.002,4492.6,4492.5,15.7680506]
[1758401742908,0.002,4492.6,4492.5,15.85725517]
[1758401760213,0.002,4492.9,4492.5,15.85725517]
[1758401760356,1e-08,4493.1,4493.0,3.01768439]
[1758401760556,1e-08,4493.3,4493.2,6.01758532]
[1758401760793,1e-08,4493.3,4493.2,13.64898532]
[1758401761084,1e-08,4493.3,4493.2,13.88098532]
[1758401761588,1e-08,4493.3,4493.2,13.97017259]
[1758401761766,1e-08,4493.3,4493.2,15.64218801]
[1758401762894,1e-08,4493.3,4493.2,17.56718801]
[1758401765892,0.002,4493.5,4493.4,9.96388625]
[1758401766088,0.002,4493.5,4493.4,13.64788625]
[1758401766661,0.002,4493.5,4493.4,13.73707352]
[1758401766856,0.002,4493.5,4493.4,15.93634996]
[1758401770474,0.002,4493.5,4493.4,16.16564996]
[1758401781538,0.247,4493.5,4493.4,11.37116269]
[1758401781695,0.247,4493.5,4493.4,9.85588625]
[1758401781891,0.197,4493.5,4493.4,9.85588625]
[1758401787511,0.199,4493.5,4493.4,9.85588625]
[1758401791720,0.199,4493.5,4493.4,6.17188625]
[1758401791920,0.199,4493.5,4493.4,9.85588625]
[1758401793966,0.199,4493.5,4493.4,6.17188625]
[1758401794125,0.2066,4493.5,4493.4,3.94639999]
[1758401795665,0.2066,4493.5,4493.3,0.001]
[1758401796166,0.2046,4493.4,4493.3,0.001]
[1758401805571,0.002,4493.5,4493.3,0.001]
[1758401805870,0.2066,4493.5,4493.3,0.001]
[1758401809074,0.002,4493.5,4493.3,0.001]
[1758401809643,0.2066,4493.5,4493.3,0.001]
[1758401809843,0.002,4493.5,4493.3,0.001]
[1758401829820,0.2066,4493.5,4493.3,0.001]
[1758401831789,3.685,4493.4,4493.3,0.001]
[1758401841454,0.002,4493.5,4493.3,0.2423]
[1758401841752,3.685,4493.4,4493.3,0.001]
[1758401842256,3.685,4493.4,4493.3,0.2423]
[1758401842449,3.685,4493.4,4493.3,0.001]
[1758401845018,3.8896,4493.4,4493.3,0.001]
[1758401845669,3.685,4493.4,4493.3,0.001]
[1758401846432,3.685,4493.4,4493.3,0.2423]
[1758401849940,0.002,4493.5,4493.3,0.2423]
[1758401850146,3.685,4493.4,4493.3,0.001]
[1758401850893,3.685,4493.4,4493.3,0.2423]
[1758401851247,3.685,4493.4,4493.3,0.001]
[1758401851452,3.685,4493.4,4493.3,0.2423]
[1758401855592,3.685,4493.4,4493.3,0.001]
[1758401856690,3.685,4493.4,4493.3,0.2423]
[1758401857290,3.685,4493.4,4493.3,0.001]
[1758401860496,3.685,4493.4,4493.3,2.22653579]
[1758401860807,3.685,4493.4,4493.3,2.46783579]
[1758401861099,0.002,4493.5,4493.4,2.22548626]
[1758401861303,3.687,4493.5,4493.4,2.22548626]
[1758401861986,3.687,4493.5,4493.4,2.46678626]
[1758401862185,3.687,4493.5,4493.4,2.22548626]
[1758401862587,0.002,4493.5,4493.4,2.46678626]
[1758401862800,0.002,4493.5,4493.4,7.27528786]
[1758401862988,0.002,4493.7,4493.6,2.22538721]
[1758401863300,0.002,4493.7,4493.6,12.87904107]
[1758401863599,0.002,4493.7,4493.6,13.0980872]
[1758401863773,0.002,4493.7,4493.6,14.72344777]
[1758401865635,0.002,4493.7,4493.6,15.51544777]
[1758401876449,0.002,4493.7,4493.6,15.51444777]
[1758401886113,0.002,4493.7,4493.6,15.27314777]
[1758401888035,0.002,4493.7,4493.6,11.58914777]
[1758401888170,0.002,4493.7,4493.6,14.48114777]
[1758401903683,0.002,4493.7,4493.6,3.94639999]
[1758401903857,0.2086,4493.7,4493.5,0.001]
[1758401913880,0.2066,4493.6,4493.5,0.001]
[1758401919285,0.002,4493.7,4493.5,0.001]
[1758401919458,0.2086,4493.7,4493.5,0.001]
[1758401924085,0.002,4493.7,4493.5,0.001]
[1758401927088,0.002,4493.7,4493.5,2.4618254]
[1758401927287,0.002,4493.7,4493.6,0.2354]
[1758401927456,0.002,4493.7,4493.5,2.2264254]
[1758401927786,0.002,4493.7,4493.5,2.24867976]
[1758401928351,0.002,4493.7,4493.5,2.2264254]
[1758401930790,0.002,4493.7,4493.6,2.46078721]
[1758401931354,0.002,4493.7,4493.6,6.15678721]
[1758401931554,0.002,4493.7,4493.6,5.92138721]
[1758401933204,0.21078397,4493.7,4493.6,5.92138721]
[1758401934295,0.21078397,4493.7,4493.6,3.696]
[1758401935496,0.21077684,4493.7,4493.6,3.696]
[1758401938616,0.21077684,4493.7,4493.6,5.92138721]
[1758401939012,0.21077684,4493.7,4493.6,3.696]
[1758401939710,0.21076789,4493.7,4493.6,3.696]
[1758401944046,0.002,4493.7,4493.6,3.696]
[1758401945059,0.002,4493.7,4493.5,0.001]
[1758401945348,0.2086,4493.7,4493.5,3.695]
[1758401947033,0.20877855,4493.6,4493.5,0.001]
[1758401948021,5.22548626,4493.4,4493.3,0.001]
[1758401948226,0.792,4493.1,4493.0,0.001]
[1758401948452,6.22641341,4493.1,4493.0,0.001]
[1758401948750,6.80175609,4493.1,4493.0,0.001]
[1758401949434,10.52575609,4493.1,4493.0,0.001]
[1758401955568,10.87475159,4493.1,4493.0,0.001]
[1758401955963,10.52575609,4493.1,4493.0,0.001]
[1758401958441,10.52436237,4493.1,4493.0,0.001]
[1758401960577,10.87335445,4493.1,4493.0,0.001]
[1758401965897,10.52436237,4493.1,4493.0,0.001]
[1758401970621,10.87334884,4493.1,4493.0,0.001]
[1758401974509,10.8739533,4493.1,4493.0,0.001]
[1758401975580,10.6683533,4493.1,4493.0,0.001]
[1758401975981,10.6683533,4493.1,4493.0,0.2453]
[1758401975982,10.31936683,4493.1,4493.0,0.2453]
[1758401976182,6.59536683,4493.1,4493.0,0.2453]
[1758401976517,2.22573393,4492.9,4492.5,0.001]
[1758401976717,6.15072322,4492.9,4492.5,0.001]
[1758401976918,9.15072322,4492.9,4492.5,0.001]
[1758401978393,9.15072322,4492.9,4492.8,0.2453]
[1758401981848,9.15072322,4492.9,4492.8,0.001]
[1758401982194,9.15072322,4492.9,4492.8,0.2453]
[1758401982942,9.15072322,4492.9,4492.8,0.001]
[1758401983527,9.15072322,4492.9,4492.8,0.2453]
[1758401984339,9.15072322,4492.9,4492.8,0.001]
[1758401985844,11.07572322,4492.9,4492.8,0.2435]
[1758401986545,11.35621295,4492.9,4492.8,0.001]
[1758402000280,11.48134649,4492.9,4492.8,0.001]
[1758402001486,11.48197147,4492.9,4492.8,0.001]
[1758402008254,11.48197147,4492.9,4492.8,0.2439]
[1758402008997,11.48197147,4492.9,4492.8,0.001]
[1758402013375,11.14822366,4492.9,4492.8,0.001]
[1758402013579,11.48241731,4492.9,4492.8,0.001]
[1758402033032,2.22583301,4492.7,4492.6,0.1603]
[1758402033238,2.22588256,4492.6,4492.5,0.001]
[1758402033537,2.56007621,4492.6,4492.5,0.001]
[1758402033724,4.57432656,4492.6,4492.5,0.001]
[1758402036399,8.27632656,4492.6,4492.5,0.001]
[1758402040202,8.27632656,4492.6,4492.5,0.2393]
[1758402040714,8.27632656,4492.6,4492.5,0.001]
[1758402041634,8.27532656,4492.6,4492.5,0.001]
[1758402048642,4.57432656,4492.6,4492.5,0.001]
[1758402048807,5.95919365,4492.6,4492.5,0.2315]
[1758402049638,8.18507621,4492.6,4492.5,0.2315]
[1758402052951,8.41657621,4492.6,4492.5,0.2315]
[1758402053674,8.20770518,4492.6,4492.5,0.2315]
[1758402053838,8.41655201,4492.6,4492.5,0.2315]
[1758402056344,8.41855201,4492.6,4492.5,0.2315]
[1758402060168,8.41855201,4492.6,4492.5,0.001]
[1758402060376,8.41855201,4492.6,4492.5,0.2315]
[1758402060946,8.41850838,4492.6,4492.5,0.2315]
[1758402061148,6.19262582,4492.6,4492.5,0.001]
[1758402061343,6.19062582,4492.6,4492.5,0.2315]
[1758402061773,8.41650838,4492.6,4492.5,0.2315]
[1758402067279,6.19062582,4492.6,4492.5,0.2315]
[1758402067785,8.41650838,4492.6,4492.5,0.2315]
[1758402068261,8.4165052,4492.6,4492.5,0.2315]
[1758402070285,2.49262264,4492.6,4492.5,0.2315]
[1758402070485,6.18962264,4492.6,4492.5,0.2315]
[1758402070878,8.4155052,4492.6,4492.5,0.2315]
[1758402073173,8.4155052,4492.6,4492.5,0.001]
[1758402074858,4.7185052,4492.6,4492.5,0.001]
[1758402075077,8.4145052,4492.6,4492.5,0.001]
[1758402075388,4.7185052,4492.6,4492.5,0.001]
[1758402075590,8.4145052,4492.6,4492.5,0.001]
[1758402076316,8.41454791,4492.6,4492.5,0.001]
[1758402076614,8.41457163,4492.6,4492.5,0.001]
[1758402080019,8.41457163,4492.6,4492.5,0.234]
[1758402080584,8.41457163,4492.6,4492.5,0.001]
[1758402081515,2.49268907,4492.6,4492.5,0.001]
[1758402081692,6.18768907,4492.6,4492.5,0.234]
[1758402081898,6.18768907,4492.6,4492.5,0.001]
[1758402082098,8.41357163,4492.6,4492.5,0.001]
[1758402082796,6.18768907,4492.6,4492.5,0.001]
[1758402083317,8.41357163,4492.6,4492.5,0.001]
[1758402088725,8.65967163,4492.6,4492.5,0.001]
[1758402089729,8.41357163,4492.6,4492.5,0.001]
[1758402089923,4.71857163,4492.6,4492.5,0.001]
[1758402090221,8.65867163,4492.6,4492.5,0.001]
[1758402091346,6.73367163,4492.6,4492.5,0.001]
[1758402091544,4.50778907,4492.6,4492.5,0.001]
[1758402091715,4.26168907,4492.6,4492.5,0.001]
[1758402092449,4.26168907,4492.6,4492.5,0.234]
[1758402092629,4.26168907,4492.6,4492.5,0.001]
[1758402092811,4.2617629,4492.6,4492.5,0.001]
[1758402094117,0.5677629,4492.6,4492.5,0.001]
[1758402094316,4.2617629,4492.6,4492.5,0.001]
[1758402095247,0.5677629,4492.6,4492.5,0.001]
[1758402095450,4.2617629,4492.6,4492.5,0.001]
[1758402098148,4.2617629,4492.6,4492.5,0.234]
[1758402098319,4.2617629,4492.6,4492.5,0.001]
[1758402100756,4.05284859,4492.6,4492.5,0.001]
[1758402100943,4.0528503,4492.6,4492.5,0.001]
[1758402109045,0.3588503,4492.6,4492.5,2.4535321]
[1758402109241,4.0528503,4492.6,4492.5,2.4535321]
[1758402109654,0.3588503,4492.6,4492.5,2.4535321]
[1758402109861,3.9275,4492.6,4492.5,3.31855189]
[1758402114635,3.9275,4492.6,4492.5,2.4535321]
[1758402115268,3.9275,4492.6,4492.5,2.2269321]
[1758402117668,0.2335,4492.6,4492.5,2.2269321]
[1758402117878,3.9275,4492.6,4492.5,2.2269321]
[1758402119335,3.9275,4492.6,4492.5,0.001]
[1758402120256,3.9275,4492.6,4492.5,2.2269321]
[1758402125175,3.9275,4492.6,4492.5,0.001]
[1758402126248,3.9275,4492.6,4492.5,2.2269321]
[1758402126646,3.9275,4492.6,4492.5,0.001]
[1758402127579,3.9275,4492.6,4492.5,2.2269321]
[1758402129061,3.9275,4492.6,4492.5,2.4610321]
[1758402130170,3.9275,4492.6,4492.5,2.2269321]
[1758402133080,3.9275,4492.6,4492.5,0.001]
[1758402133995,3.9275,4492.6,4492.5,2.2269321]
[1758402134997,3.9275,4492.6,4492.5,0.001]
[1758402135296,3.9275,4492.6,4492.5,2.2269321]
[1758402137064,3.9275,4492.6,4492.5,2.4716321]
[1758402137373,3.695,4492.6,4492.5,2.4716321]
[1758402137564,3.695,4492.6,4492.5,2.94382437]
[1758402138183,0.002,4492.6,4492.5,2.94382437]
[1758402138362,3.695,4492.6,4492.5,2.94382437]
[1758402145615,3.695,4492.6,4492.5,6.89022436]
[1758402149613,0.002,4492.6,4492.5,6.64552436]
[1758402149778,0.002,4492.6,4492.5,6.89022436]
[1758402150483,0.002,4492.6,4492.5,7.55935267]
[1758402155635,0.002,4493.5,4493.2,2.22558532]
[1758402155826,0.002,4493.5,4493.2,6.38596517]
[1758402156023,0.002,4493.5,4493.2,6.60840932]
[1758402156418,0.002,4493.5,4493.2,6.69761031]
[1758402156618,0.002,4493.5,4493.2,7.15128323]
[1758402160338,0.002,4493.5,4493.2,11.09768322]
[1758402168039,0.002,4493.5,4493.2,10.85298322]
[1758402173788,0.002,4493.5,4493.2,11.09328322]
[1758402174371,0.002,4493.5,4493.2,10.85298322]
[1758402178495,0.002,4493.5,4493.2,11.09328322]
[1758402180659,0.002,4493.5,4493.2,14.09328322]
[1758402182097,0.002,4493.7,4493.6,2.22538721]
[1758402182258,0.002,4493.7,4493.6,13.63112842]
[1758402182456,0.002,4493.7,4493.6,13.84917455]
[1758402182887,0.002,4493.7,4493.6,13.93836142]
[1758402192224,0.002,4493.7,4493.6,13.69806142]
[1758402199247,0.002,4493.7,4493.6,13.94416142]
[1758402199453,0.002,4493.7,4493.6,13.69806142]
[1758402209773,0.002,4493.7,4493.6,13.69706142]
[1758402210330,0.2422,4493.7,4493.6,13.69706142]
[1758402210534,0.002,4493.7,4493.6,13.69706142]
[1758402240393,0.002,4493.7,4493.6,13.93236142]
[1758402241450,0.002,4493.7,4493.6,13.69706142]
[1758402242140,0.002,4493.7,4493.6,10.00606142]
[1758402242347,0.2271,4493.7,4493.6,12.95097407]
[1758402247647,0.002,4493.7,4493.6,12.95097407]
[1758402247950,0.002,4493.7,4493.6,13.19957407]
[1758402248114,0.002,4493.7,4493.6,12.95097407]
[1758402267633,0.002,4493.7,4493.6,9.26097407]
[1758402267834,0.234,4493.7,4493.6,12.95097407]
[1758402268515,0.002,4493.7,4493.6,12.95097407]
[1758402272630,0.002,4493.7,4493.6,14.05001154]
[1758402275321,0.002,4493.7,4493.6,10.10361155]
[1758402284366,0.002,4493.7,4493.6,6.41361155]
[1758402284537,0.002,4493.7,4493.6,10.10261155]
[1758402284873,0.002,4493.7,4493.6,14.04901154]
[1758402291174,0.002,4493.7,4493.6,10.36001154]
[1758402291378,0.235,4493.7,4493.6,12.94997407]
[1758402291978,0.002,4493.7,4493.6,12.94997407]
[1758402320646,0.2485,4493.7,4493.6,4.03558686]
[1758402320793,0.2485,4493.7,4493.6,3.94639999]
[1758402321329,0.2485,4493.7,4493.6,6.1717872]
[1758402332214,0.002,4493.7,4493.6,6.1717872]
[1758402332425,0.2485,4493.7,4493.6,6.1717872]
[1758402336658,0.002,4493.7,4493.6,6.1717872]
[1758402340553,0.2485,4493.7,4493.6,6.1717872]
[1758402342561,0.002,4493.7,4493.6,6.1717872]
[1758402343960,0.2485,4493.7,4493.6,6.1717872]
[1758402344965,0.002,4493.7,4493.6,6.1717872]
[1758402347169,0.2416,4493.7,4493.6,6.1717872]
[1758402348035,0.002,4493.7,4493.6,6.1717872]
[1758402355886,0.2416,4493.7,4493.6,6.1717872]
[1758402357585,0.2416,4493.7,4493.6,3.94639999]
[1758402357778,2.80108525,4493.7,4493.6,3.94639999]
[1758402358086,3.31423474,4493.7,4493.6,3.94639999]
[1758402359289,3.10539251,4493.7,4493.6,3.94639999]
[1758402359790,3.31397959,4493.7,4493.6,3.94639999]
[1758402361508,3.10539251,4493.7,4493.6,3.94639999]
[1758402361987,2.22538721,4493.6,4493.5,0.001]
[1758402362190,2.8658516,4493.6,4493.5,0.001]
[1758402362360,3.1054516,4493.6,4493.5,0.001]
[1758402362790,3.77461873,4493.6,4493.5,0.001]
[1758402363492,3.98301856,4493.6,4493.5,0.001]